bitfinex/quotes_SOLUSD_20240625
["timestamp","ask_amount","ask_price","bid_price","bid_amount"]
[1719308191062,100.0,135.85,135.73,27.44]
[1719308191262,100.0,135.85,135.74,43.82096772]
[1719308191468,100.0,135.85,135.74,20.34]
[1719308192160,100.0,135.85,135.76,93.94]
[1719308192361,0.04378652,135.86,135.82,27.44]
[1719308192579,101.0,136.0,135.85,27.44]
[1719308192580,100.0,135.95,135.85,27.44]
[1719308192771,100.0,135.95,135.86,20.34]
[1719308193364,100.0,135.97,135.86,20.34]
[1719308193578,135.7934,136.0,135.86,20.34]
[1719308193579,100.0,135.95,135.86,20.34]
[1719308193789,100.0,135.97,135.86,20.34]
[1719308193988,100.0,135.95,135.86,20.34]
[1719308194176,100.0,135.97,135.86,20.34]
[1719308194687,100.0,135.98,135.86,20.34]
[1719308194860,100.0,135.95,135.86,20.34]
[1719308195065,100.0,135.95,135.86,0.34]
[1719308196265,100.0,135.95,135.85,0.34]
[1719308196487,100.0,135.95,135.87,0.17]
[1719308196693,100.0,135.95,135.85,0.34]
[1719308196990,108.353,136.0,135.85,0.34]
[1719308197190,100.0,135.96,135.85,0.34]
[1719308197382,100.0,135.95,135.85,0.17]
[1719308197974,101.0,136.0,135.85,0.17]
[1719308198175,100.0,135.96,135.85,0.17]
[1719308198378,101.0,136.0,135.85,0.17]
[1719308198687,101.0,136.0,135.88,0.17]
[1719308198894,100.0,135.98,135.87,20.34]
[1719308199393,1.0,136.0,135.87,42.52]
[1719308199590,100.0,135.99,135.87,42.52]
[1719308199996,100.0,135.96,135.87,20.34]
[1719308200171,100.0,135.96,135.87,0.34]
[1719308200873,100.0,135.98,135.87,0.34]
[1719308201272,100.0,135.96,135.87,0.34]
[1719308201473,100.0,135.94,135.86,19.4600501]
[1719308201674,100.0,135.96,135.82,44.32]
[1719308202073,100.0,135.93,135.82,44.32]
[1719308202276,100.0,135.95,135.82,44.32]
[1719308202491,100.0,135.95,135.83,22.18]
[1719308202913,100.0,135.95,135.84,0.34]
[1719308203391,100.0,135.93,135.84,0.34]
[1719308203590,100.0,135.95,135.84,42.52]
[1719308204187,100.0,135.95,135.84,20.34]
[1719308204691,100.0,135.93,135.83,20.0]
[1719308205273,100.0,135.93,135.82,20.0]
[1719308205681,100.0,135.91,135.82,20.0]
[1719308205999,100.0,135.93,135.82,20.0]
[1719308206376,100.0,135.93,135.81,20.0]
[1719308206989,100.0,135.91,135.81,20.0]
[1719308207794,100.0,135.91,135.82,0.34]
[1719308208287,100.0,135.93,135.82,0.34]
[1719308208697,100.0,135.91,135.82,0.34]
[1719308208905,100.0,135.94,135.82,0.34]
[1719308209577,100.0,135.91,135.82,0.34]
[1719308211511,100.0,135.89,135.81,20.0]
[1719308211803,100.0,135.91,135.79,20.0]
[1719308212916,100.0,135.89,135.79,20.0]
[1719308213693,100.0,135.89,135.8,0.17]
[1719308213889,100.0,135.89,135.8,0.34]
[1719308216603,100.0,135.89,135.8,1.63822802]
[1719308216808,100.0,135.89,135.8,1.46822802]
[1719308217009,100.0,135.89,135.79,47.35]
[1719308217303,100.0,135.89,135.8,0.17]
[1719308220811,100.0,135.89,135.77,7.42121797]
[1719308220812,100.0,135.84,135.77,7.42121797]
[1719308221012,100.0,135.84,135.72,256.00443045]
[1719308221013,100.0,135.84,135.74,33.14443949]
[1719308221192,100.0,135.82,135.75,20.0]
[1719308221396,100.0,135.82,135.73,27.35]
[1719308222807,100.0,135.8,135.73,27.35]
[1719308223206,100.0,135.8,135.7,27.35]
[1719308223409,100.0,135.8,135.71,20.0]
[1719308224000,100.0,135.78,135.69,27.35]
[1719308224198,100.0,135.78,135.67,29.497576]
[1719308224199,100.0,135.78,135.67,5.9878092]
[1719308224408,100.0,135.78,135.65,22.18]
[1719308224409,200.0,135.78,135.68,27.35]
[1719308224607,100.0,135.76,135.68,27.35]
[1719308225205,100.0,135.76,135.66,27.35]
[1719308225508,27.35,135.82,135.8,350.9006225]
[1719308225807,200.34,135.81,135.8,350.9006225]
[1719308226709,200.34,135.81,135.8,141.6406225]
[1719308226710,207.7032,135.81,135.8,141.6406225]
[1719308227492,232.7032,135.81,135.8,141.6406225]
[1719308227700,207.7032,135.81,135.8,141.6406225]
[1719308228818,280.0532,135.81,135.8,141.6406225]
[1719308229319,100.0,135.74,135.62,281.65]
[1719308229616,107.367,135.74,135.59,33.35000941]
[1719308229812,107.367,135.74,135.6,20.0]
[1719308230317,107.367,135.74,135.61,27.35]
[1719308230505,100.0,135.72,135.62,20.0]
[1719308230707,0.34,135.75,135.62,20.0]
[1719308231233,0.34,135.75,135.63,0.17]
[1719308231415,0.34,135.75,135.63,0.34]
[1719308231597,7.7066,135.75,135.63,0.34]
[1719308231793,100.0,135.74,135.62,20.0]
[1719308232220,100.0,135.74,135.63,0.34]
[1719308233504,100.0,135.74,135.63,0.17]
[1719308233505,107.367,135.74,135.63,0.17]
[1719308233709,100.0,135.74,135.62,20.0]
[1719308234224,107.367,135.74,135.62,20.0]
[1719308234409,100.0,135.72,135.61,27.69]
[1719308234604,100.0,135.72,135.62,20.34]
[1719308236415,7.70688441,135.76,135.63,22.18]
[1719308236619,100.0,135.79,135.62,20.34]
[1719308236620,100.0,135.79,135.71,27.35]
[1719308236822,100.0,135.81,135.71,27.35]
[1719308237304,100.0,135.86,135.72,0.17]
[1719308237305,100.0,135.85,135.72,0.17]
[1719308237495,100.0,135.83,135.74,27.35]
[1719308238520,107.3621,135.83,135.74,27.35]
[1719308238818,0.34,135.82,135.69,31.94]
[1719308239011,0.34,135.82,135.66,54.12]
[1719308239012,100.0,135.78,135.7,20.0]
[1719308239199,100.34,135.82,135.7,20.0]
[1719308239200,100.0,135.77,135.7,20.0]
[1719308239395,100.0,135.77,135.66,31.94]
[1719308239596,100.0,135.79,135.66,31.94]
[1719308239800,0.17,135.78,135.66,31.94]
[1719308240010,100.0,135.79,135.66,31.94]
[1719308240899,100.0,135.79,135.67,20.0]
[1719308241822,100.0,135.79,135.68,0.17]
[1719308242016,100.0,135.79,135.68,0.34]
[1719308243539,107.3634,135.81,135.68,0.34]
[1719308245007,100.0,135.83,135.68,22.52]
[1719308245221,100.0,135.87,135.73,31.94]
[1719308245521,100.0,135.87,135.74,20.91587637]
[1719308245522,200.0,135.87,135.74,20.91587637]
[1719308245902,207.3603,135.87,135.74,20.91587637]
[1719308246424,100.0,135.85,135.74,20.91587637]
[1719308246601,100.0,135.87,135.74,20.91587637]
[1719308246914,100.0,135.87,135.74,20.34]
[1719308247817,107.3599,135.87,135.74,20.34]
[1719308248126,100.0,135.87,135.74,20.34]
[1719308248830,100.0,135.89,135.74,20.34]
[1719308249899,107.3588,135.89,135.74,20.34]
[1719308250325,100.0,135.89,135.74,20.34]
[1719308251325,100.0,135.89,135.77,31.94]
[1719308251506,100.0,135.89,135.78,20.34]
[1719308253917,100.0,135.87,135.78,20.0]
[1719308254111,107.69942791,135.89,135.75,1.70405378]
[1719308254306,107.3589,135.89,135.76,0.34]
[1719308254505,100.0,135.89,135.76,0.34]
[1719308255108,100.0,135.87,135.76,0.34]
[1719308255923,107.69961346,135.89,135.76,0.34]
[1719308256122,100.0,135.9,135.76,0.34]
[1719308256316,100.0,135.9,135.76,20.34]
[1719308256521,100.0,135.9,135.77,31.94]
[1719308256720,100.0,135.9,135.78,20.34]
[1719308256936,100.0,135.92,135.78,20.34]
[1719308257421,100.0,135.9,135.78,20.34]
[1719308258917,18.3884,135.96,135.78,20.34]
[1719308258918,100.0,135.92,135.78,20.34]
[1719308259548,100.0,135.92,135.79,66.5]
[1719308259736,100.0,135.92,135.8,20.34]
[1719308260037,100.0,135.92,135.81,20.17]
[1719308260251,100.0,135.92,135.82,0.17]
[1719308260758,100.0,135.92,135.84,27.34]
[1719308261424,107.3573,135.92,135.82,27.51]
[1719308261724,100.0,135.9,135.82,27.34]
[1719308265235,100.0,135.87,135.77,47.34]
[1719308266255,100.0,135.88,135.77,47.34]
[1719308266556,100.0,135.88,135.78,0.17]
[1719308266945,100.0,135.88,135.78,0.34]
[1719308267447,100.0,135.88,135.77,47.34]
[1719308267751,100.0,135.85,135.77,47.34]
[1719308271156,0.34,135.89,135.77,47.34]
[1719308271335,100.0,135.87,135.77,47.34]
[1719308272852,100.0,135.87,135.77,20.0]
[1719308273152,100.0,135.87,135.77,27.34]
[1719308282257,107.69981289,135.9,135.78,20.34]
[1719308282439,100.0,135.9,135.8,27.34]
[1719308283765,100.0,135.9,135.81,20.0]
[1719308285055,100.0,135.88,135.81,20.0]
[1719308286264,100.0,135.91,135.81,20.0]
[1719308286573,100.0,135.91,135.83,27.34]
[1719308289655,100.0,135.89,135.81,20.0]
[1719308290961,100.0,135.87,135.8,27.34]
[1719308291264,100.0,135.87,135.74,44.32]
[1719308291446,100.0,135.87,135.75,20.0]
[1719308291848,100.0,135.87,135.78,27.34]
[1719308292052,100.0,135.89,135.79,20.0]
[1719308293455,100.0,135.87,135.79,20.0]
[1719308293968,100.0,135.85,135.74,5.75111114]
[1719308294269,100.0,135.85,135.78,27.34]
[1719308294462,100.0,135.87,135.78,27.34]
[1719308295248,100.0,135.82,135.75,20.0]
[1719308295454,100.0,135.82,135.74,20.0]
[1719308295970,100.0,135.8,135.73,27.34]
[1719308297972,100.0,135.82,135.73,27.34]
[1719308299276,100.0,135.84,135.73,27.34]
[1719308299763,100.0,135.82,135.73,27.34]
[1719308299966,100.0,135.8,135.73,27.34]
[1719308300171,100.0,135.82,135.73,27.34]
[1719308300864,100.0,135.79,135.73,27.34]
[1719308301054,100.0,135.79,135.7,27.34]
[1719308302663,100.0,135.77,135.66,5.80415707]
[1719308302862,100.0,135.77,135.68,27.34]
[1719308303065,100.0,135.77,135.69,20.0]
[1719308305455,100.0,135.79,135.69,20.0]
[1719308306188,100.0,135.75,135.69,20.0]
[1719308306369,100.0,135.75,135.67,27.34]
[1719308309879,100.0,135.73,135.64,27.34]
[1719308310068,100.0,135.73,135.65,20.0]
[1719308312062,100.0,135.75,135.65,20.0]
[1719308312259,100.0,135.75,135.66,0.34]
[1719308313281,100.0,135.75,135.65,20.0]
[1719308314684,109.14,135.75,135.7,9.14]
[1719308317384,100.0,135.75,135.71,9.14]
[1719308317878,8.79909477,135.8,135.74,9.14]
[1719308318082,109.14,135.81,135.76,9.14]
[1719308318261,100.0,135.81,135.76,9.14]
[1719308318461,109.14,135.81,135.76,9.14]
[1719308319467,100.0,135.81,135.76,9.14]
[1719308319874,109.14,135.81,135.76,9.14]
[1719308320072,109.14,135.81,135.66,80.88]
[1719308320369,109.14,135.81,135.75,9.14]
[1719308320676,100.0,135.79,135.7,27.39]
[1719308320899,100.0,135.79,135.71,20.0]
[1719308321270,100.0,135.79,135.7,27.39]
[1719308321471,100.0,135.79,135.67,0.34]
[1719308321700,100.0,135.79,135.67,20.34]
[1719308325891,100.0,135.77,135.67,20.34]
[1719308326686,100.0,135.79,135.67,20.34]
[1719308331694,100.0,135.77,135.67,20.34]
[1719308331894,100.0,135.77,135.69,27.39]
[1719308333191,100.0,135.82,135.72,27.39]
[1719308337392,100.0,135.8,135.72,27.39]
[1719308337581,7.3629,135.82,135.72,27.39]
[1719308337582,100.0,135.78,135.72,27.39]
[1719308338499,100.0,135.78,135.7,0.17]
[1719308338716,100.0,135.76,135.7,20.0]
[1719308339010,100.0,135.76,135.68,27.39]
[1719308339172,100.0,135.76,135.69,20.0]
[1719308340594,100.0,135.76,135.65,6.0112908]
[1719308340794,100.0,135.74,135.66,27.39]
[1719308342480,0.17,135.75,135.66,27.39]
[1719308342693,0.34,135.75,135.71,9.14]
[1719308343182,100.0,135.76,135.72,9.14]
[1719308343984,100.0,135.76,135.71,9.14]
[1719308344905,100.0,135.76,135.72,9.14]
[1719308345202,100.0,135.76,135.71,9.14]
[1719308345522,100.0,135.76,135.66,36.56]
[1719308345686,100.0,135.76,135.72,9.14]
[1719308346380,100.0,135.74,135.72,9.14]
[1719308346606,100.0,135.74,135.71,9.14]
[1719308346915,7.369,135.71,135.6,45.90614942]
[1719308347115,100.0,135.72,135.61,20.0]
[1719308347415,100.0,135.7,135.61,20.0]
[1719308347585,109.14,135.72,135.61,20.0]
[1719308347785,109.14,135.72,135.6,26.0005969]
[1719308347986,109.14,135.72,135.6,20.0]
[1719308347987,100.0,135.7,135.6,20.0]
[1719308348191,100.0,135.7,135.59,36.56]
[1719308348588,100.0,135.7,135.66,9.14]
[1719308348801,100.0,135.7,135.59,36.56]
[1719308349104,100.0,135.7,135.66,9.14]
[1719308350107,109.14,135.7,135.59,42.49654426]
[1719308350316,109.14,135.7,135.65,9.14]
[1719308350997,100.0,135.7,135.65,9.14]
[1719308351197,100.0,135.7,135.66,9.14]
[1719308351382,100.0,135.72,135.69,9.14]
[1719308351710,100.0,135.75,135.71,9.14]
[1719308352092,100.0,135.77,135.66,36.56]
[1719308352305,200.0,135.79,135.73,9.14]
[1719308352596,100.0,135.77,135.68,27.4]
[1719308353602,100.0,135.75,135.68,27.4]
[1719308357505,0.34,135.74,135.63,27.4]
[1719308357707,109.68454362,135.78,135.66,27.4]
[1719308357908,116.90779185,135.8,135.69,27.4]
[1719308357909,107.3642,135.8,135.69,27.4]
[1719308358113,100.0,135.78,135.69,27.4]
[1719308359595,107.3648,135.78,135.69,27.4]
[1719308359784,100.0,135.75,135.67,20.0]
[1719308359990,107.3682,135.72,135.6,254.3]
[1719308360191,100.0,135.69,135.61,27.4]
[1719308362112,0.17,135.73,135.64,27.4]
[1719308362311,100.0,135.73,135.64,27.4]
[1719308363486,100.0,135.76,135.64,27.4]
[1719308363695,117.39077617,135.78,135.65,20.34]
[1719308363897,100.0,135.78,135.67,27.4]
[1719308364109,107.3648,135.78,135.67,27.4]
[1719308364411,100.0,135.75,135.67,27.4]
[1719308364786,107.3665,135.75,135.67,27.4]
[1719308365006,100.0,135.73,135.67,27.4]
[1719308365215,100.0,135.73,135.65,47.74]
[1719308367201,100.0,135.73,135.65,47.4]
[1719308368119,100.0,135.71,135.63,27.4]
[1719308368298,100.0,135.71,135.64,20.0]
[1719308369415,100.0,135.71,135.63,27.4]
[1719308374416,100.0,135.69,135.61,419.29593125]
[1719308374617,100.0,135.71,135.61,419.29593125]
[1719308374802,34.7674,135.74,135.61,419.29593125]
[1719308374803,100.0,135.73,135.61,419.29593125]
[1719308375113,100.0,135.73,135.62,27.4]
[1719308375808,100.0,135.71,135.62,27.4]
[1719308377816,0.17,135.7,135.62,27.4]
[1719308378011,0.34,135.7,135.62,27.4]
[1719308378430,100.0,135.71,135.62,27.4]
[1719308378633,100.0,135.69,135.62,27.4]
[1719308383326,100.0,135.71,135.62,27.4]
[1719308384636,100.0,135.71,135.61,419.29593125]
[1719308384637,0.17,135.7,135.65,9.14]
[1719308385014,0.17,135.7,135.66,9.14]
[1719308385219,109.14,135.71,135.66,9.14]
[1719308385831,0.34,135.72,135.68,9.14]
[1719308386027,109.14,135.73,135.68,9.14]
[1719308386946,100.0,135.71,135.61,419.29593125]
[1719308387118,100.0,135.71,135.68,9.14]
[1719308387319,100.0,135.71,135.62,0.34]
[1719308387523,100.0,135.71,135.67,9.14]
[1719308388514,100.0,135.73,135.68,9.14]
[1719308388719,100.17,135.73,135.68,9.14]
[1719308390635,116.6778,135.73,135.68,9.14]
[1719308390850,107.3687,135.71,135.61,419.29593125]
[1719308391035,107.3687,135.71,135.66,9.14]
[1719308391036,100.0,135.69,135.66,9.14]
[1719308392151,100.0,135.69,135.61,419.29593125]
[1719308392446,100.0,135.69,135.66,9.14]
[1719308393229,116.5087,135.71,135.66,9.14]
[1719308393434,0.34,135.7,135.66,9.14]
[1719308393628,100.0,135.71,135.67,9.14]
[1719308394153,109.14,135.71,135.62,20.0]
[1719308394446,116.5088,135.71,135.66,9.14]
[1719308394740,100.0,135.69,135.62,20.0]
[1719308394950,100.0,135.69,135.65,9.14]
[1719308395934,100.0,135.73,135.68,9.14]
[1719308396153,100.0,135.73,135.69,9.14]
[1719308396930,100.0,135.73,135.68,9.14]
[1719308398056,109.14,135.73,135.62,20.0]
[1719308398229,109.14,135.73,135.67,9.14]
[1719308398230,116.5079,135.73,135.67,9.14]
[1719308398651,0.34,135.72,135.67,9.14]
[1719308398859,100.0,135.71,135.67,9.14]
[1719308399168,100.0,135.71,135.62,20.0]
[1719308399330,100.0,135.71,135.66,9.14]
[1719308400730,100.0,135.69,135.62,20.0]
[1719308401063,109.14,135.71,135.66,9.14]
[1719308403639,100.0,135.69,135.62,20.0]
[1719308403848,100.0,135.69,135.66,9.14]
[1719308404141,100.0,135.69,135.65,9.14]
[1719308404529,100.0,135.67,135.61,419.29593125]
[1719308404745,100.0,135.67,135.63,9.14]
[1719308407846,100.0,135.67,135.61,419.29593125]
[1719308408047,100.0,135.67,135.63,9.14]
[1719308409134,100.0,135.67,135.62,9.14]
[1719308410166,100.0,135.67,135.61,419.29593125]
[1719308410371,100.0,135.65,135.61,419.29593125]
[1719308410829,109.14,135.65,135.61,419.29593125]
[1719308412242,100.0,135.63,135.61,419.29593125]
[1719308413259,9.48,135.62,135.61,419.29593125]
[1719308414440,0.34,135.62,135.61,419.29593125]
[1719308414750,16.8535,135.62,135.61,419.29593125]
[1719308414953,9.48,135.62,135.61,419.29593125]
[1719308415855,16.8535,135.62,135.61,419.29593125]
[1719308416047,9.48,135.62,135.61,419.29593125]
[1719308416636,16.8535,135.62,135.61,419.29593125]
[1719308417037,116.8535,135.62,135.61,419.29593125]
[1719308420375,183.3235,135.62,135.61,286.21593125]
[1719308420581,257.87603489,135.62,135.61,286.03593125]
[1719308421166,191.40603489,135.62,135.61,286.03593125]
[1719308421365,257.89603489,135.62,135.61,286.03593125]
[1719308422085,285.31603489,135.62,135.61,286.03593125]
[1719308422882,285.31603489,135.62,135.61,152.95593125]
[1719308424271,305.31603489,135.62,135.61,118.65593125]
[1719308425996,100.0,135.52,135.49,9.14]
[1719308426907,100.0,135.54,135.5,9.14]
[1719308427198,100.0,135.54,135.45,36.56]
[1719308427381,100.0,135.54,135.5,9.14]
[1719308427697,109.14,135.54,135.45,36.56]
[1719308427892,109.14,135.54,135.49,9.14]
[1719308428084,100.0,135.54,135.49,9.14]
[1719308430000,109.14,135.54,135.45,36.56]
[1719308430184,100.0,135.52,135.45,36.56]
[1719308430384,100.0,135.52,135.5,9.14]
[1719308431194,100.0,135.54,135.45,36.56]
[1719308431406,100.0,135.56,135.53,9.14]
[1719308431606,100.0,135.58,135.54,9.14]
[1719308431906,100.0,135.56,135.54,9.14]
[1719308432506,100.0,135.58,135.55,9.14]
[1719308432686,100.0,135.58,135.46,0.17]
[1719308432687,100.0,135.58,135.56,9.14]
[1719308433204,100.0,135.63,135.57,9.14]
[1719308433403,100.0,135.63,135.61,9.14]
[1719308433708,100.0,135.63,135.6,9.14]
[1719308434087,100.0,135.61,135.6,9.14]
[1719308434288,100.0,135.61,135.59,9.14]
[1719308434696,100.0,135.61,135.55,27.46]
[1719308435288,100.0,135.63,135.55,27.46]
[1719308435899,100.0,135.61,135.55,27.46]
[1719308436788,100.0,135.63,135.55,27.46]
[1719308438008,100.0,135.67,135.58,27.46]
[1719308438997,100.0,135.65,135.58,27.46]
[1719308440288,100.0,135.63,135.58,27.46]
[1719308442696,100.0,135.65,135.58,27.46]
[1719308447309,100.0,135.63,135.58,27.46]
[1719308456721,100.0,135.63,135.62,9.15]
[1719308457221,100.0,135.65,135.62,9.15]
[1719308457417,100.0,135.65,135.59,36.6]
[1719308457728,100.0,135.65,135.64,9.15]
[1719308460619,100.0,135.65,135.63,9.15]
[1719308462021,100.0,135.65,135.59,36.6]
[1719308462022,100.0,135.67,135.64,9.15]
[1719308465324,0.17,135.66,135.64,9.15]
[1719308465519,0.34,135.66,135.64,9.15]
[1719308465831,100.0,135.67,135.64,9.15]
[1719308466032,100.0,135.67,135.66,9.15]
[1719308466214,100.17,135.67,135.66,9.15]
[1719308466410,100.0,135.69,135.66,9.15]
[1719308466638,100.0,135.69,135.67,9.15]
[1719308467945,100.0,135.67,135.66,9.15]
[1719308468308,100.0,135.69,135.66,9.15]
[1719308468526,11.20226738,135.71,135.68,9.15]
[1719308468527,111.20226738,135.71,135.68,9.15]
[1719308468737,111.20226738,135.71,135.66,9.15]
[1719308468923,111.20226738,135.71,135.66,36.6]
[1719308469331,111.20226738,135.71,135.69,9.15]
[1719308470339,100.0,135.71,135.69,9.15]
[1719308471032,100.0,135.68,135.55,260.30120104]
[1719308471234,100.0,135.68,135.59,36.6]
[1719308471440,100.0,135.68,135.66,9.15]
[1719308472621,100.0,135.68,135.6,20.34]
[1719308472622,100.0,135.68,135.6,20.0]
[1719308472817,100.0,135.65,135.59,36.6]
[1719308473033,0.34,135.67,135.59,36.6]
[1719308473034,100.34,135.67,135.59,36.6]
[1719308473241,100.0,135.67,135.65,9.15]
[1719308475539,100.0,135.65,135.59,36.6]
[1719308475742,100.0,135.65,135.64,9.15]
[1719308476116,100.0,135.67,135.64,9.15]
[1719308476322,100.0,135.67,135.59,36.6]
[1719308476323,100.0,135.67,135.66,9.15]
[1719308476523,100.0,135.68,135.66,9.15]
[1719308476840,100.0,135.7,135.67,9.15]
[1719308477023,100.0,135.7,135.68,9.15]
[1719308479645,100.0,135.72,135.58,44.34]
[1719308479941,100.0,135.77,135.58,44.34]
[1719308479942,100.0,135.76,135.71,9.15]
[1719308480145,100.0,135.76,135.75,9.15]
[1719308480923,112.79954291,135.78,135.75,9.15]
[1719308481144,112.79954291,135.78,135.77,9.15]
[1719308482146,100.0,135.78,135.77,9.15]
[1719308484135,100.0,135.8,135.77,9.15]
[1719308485748,100.0,135.78,135.77,9.15]
[1719308485938,100.0,135.75,135.61,22.15]
[1719308486150,100.0,135.75,135.74,9.15]
[1719308486545,100.0,135.77,135.74,9.15]
[1719308486739,100.0,135.77,135.73,9.15]
[1719308486740,100.0,135.77,135.76,9.15]
[1719308487744,0.17,135.78,135.76,9.15]
[1719308487941,100.0,135.79,135.77,9.15]
[1719308488953,100.0,135.81,135.78,9.15]
[1719308489132,100.0,135.81,135.73,36.6]
[1719308489441,100.0,135.81,135.8,9.15]
[1719308490142,100.17,135.81,135.8,9.15]
[1719308490538,100.0,135.81,135.8,9.15]
[1719308493345,100.17,135.81,135.79,9.15]
[1719308494446,100.0,135.77,135.66,254.3]
[1719308494757,100.0,135.77,135.76,9.15]
[1719308496059,100.0,135.79,135.76,9.15]
[1719308496263,100.0,135.79,135.78,9.15]
[1719308496440,100.34,135.79,135.78,9.15]
[1719308499639,100.17,135.79,135.78,9.15]
[1719308500436,100.0,135.79,135.78,9.15]
[1719308502051,100.0,135.76,135.66,42.3771446]
[1719308502259,100.0,135.76,135.74,9.15]
[1719308503051,100.0,135.76,135.75,9.15]
[1719308504464,100.0,135.78,135.75,9.15]
[1719308504642,100.0,135.78,135.76,9.15]
[1719308506779,100.0,135.8,135.77,9.15]
[1719308506977,100.0,135.8,135.79,9.15]
[1719308509295,100.0,135.8,135.78,9.15]
[1719308511889,100.0,135.8,135.79,9.15]
[1719308514771,100.0,135.79,135.78,9.15]
[1719308515995,100.0,135.77,135.73,36.6]
[1719308516201,100.0,135.77,135.76,9.15]
[1719308517775,100.0,135.79,135.76,9.15]
[1719308517977,100.0,135.79,135.78,9.15]
[1719308519592,100.0,135.79,135.77,9.15]
[1719308519774,100.0,135.79,135.78,9.15]
[1719308520479,100.0,135.79,135.66,5.7771446]
[1719308520680,100.0,135.79,135.78,9.15]
[1719308526716,100.0,135.72,135.71,9.15]
[1719308527508,100.0,135.72,135.66,36.6]
[1719308527689,100.0,135.72,135.71,9.15]
[1719308530201,100.0,135.7,135.62,7.43705017]
[1719308530407,100.0,135.7,135.69,9.15]
[1719308536823,100.0,135.7,135.63,20.0]
[1719308537023,100.0,135.7,135.69,9.15]
[1719308537939,100.0,135.7,135.66,36.6]
[1719308538134,100.0,135.7,135.63,20.0]
[1719308538319,100.0,135.7,135.69,9.15]
[1719308538512,100.0,135.7,135.63,20.0]
[1719308538716,100.0,135.7,135.66,36.6]
[1719308538938,100.0,135.7,135.69,9.15]
[1719308540237,100.0,135.7,135.63,20.0]
[1719308540434,100.0,135.7,135.69,9.15]
[1719308540762,100.0,135.7,135.63,20.0]
[1719308540965,100.0,135.7,135.69,9.15]
[1719308543018,100.0,135.7,135.63,20.0]